Cogmind - Beta 13 @@@ ROGUE MODE // 2024.04.30 @ 02:55:24 Player: Wyvric Result: Self-destructed Performance ------------- Evolutions (2) 1000 Regions Visited (7) 1400 Robots Destroyed (60) 300 Value Destroyed (1780) 1780 Prototype IDs (2) 40 Alien Tech Used (0) 0 Bonus (83) 83 TOTAL SCORE: 4603 Bonus ------- Follower Combat Kills 83 Cogmind --------- Core Integrity 423/550 Matter 300/300 Energy 100/100 System Corruption 0% Temperature Cool (0) Movement Rolling (140) Ox4 Location -8/Materials Parts ------- > --- POWER (1) -------- (None) > --- PROPULSION (4) --- Light Treads Carbon-fiber Leg Wheel > --- UTILITY (4) ------ Advanced Heat Sink High-capacity Storage Unit Advanced Visual Processing Unit > --- WEAPON (2) ------- Mace Great Maul > --- INVENTORY (20) --- Light Nuclear Core Improved Aluminum Leg Carbon-fiber Leg Armored Wheel Light Armor Plating Shock Rifle Shock Rifle Shock Rifle Shock Rifle EM Pulse Cannon EM Pulse Cannon Improved Assault Rifle Improved Assault Rifle Improved Assault Rifle Bore Cannon Advanced EMP Blaster Rocket Launcher Mini Grenade Launcher Peak State ------------ > --- POWER ------------ Light Nuclear Core > --- PROPULSION ------- Light Treads Light Treads Wheel Compact Wheel > --- UTILITY ---------- High-capacity Storage Unit Structural Scanner Advanced Visual Processing Unit Light Armor Plating > --- WEAPON ----------- Bore Cannon Mace > --- INVENTORY -------- Light Nuclear Core Light Treads Improved Aluminum Leg Carbon-fiber Leg Wheel Armored Wheel Shock Rifle Shock Rifle Shock Rifle Shock Rifle Heavy Laser EM Pulse Cannon EM Pulse Cannon Improved Assault Rifle Improved Assault Rifle Improved Assault Rifle Improved Light Cannon Rocket Launcher Mini Grenade Launcher Hammer [Rating: 25] Favorites ----------- Power Ion Engine Engine Ion Engine Power Core Light Nuclear Core Propulsion Light Treads Treads Light Treads Leg Carbon-fiber Leg Wheel Compact Wheel Utility Structural Scanner Device Structural Scanner Storage High-capacity Storage Unit Processor Signal Interpreter Protection Light Armor Plating Weapon Improved Light Cannon Energy Gun EM Pulse Gun Energy Cannon EM Pulse Cannon Ballistic Gun Assault Rifle Ballistic Cannon Improved Light Cannon Launcher Rocket Launcher Special Weapon Plasma Cutter Impact Weapon Hammer Build | -11 -10 -10 -9 -9 -9 -8 -8 ------- Run | Yrd Mat Min Mat Min Exi Min Mat Slots Evolved 4 | . . . 2 . . . 2 Power . | . . . . . . . . Propulsion 2 | . . . . . . . 2 Utility 2 | . . . 2 . . . . Weapon . | . . . . . . . . Parts Attached 79 | 7 3 5 20 4 2 13 25 Power 6 | 1 . . 2 1 . 1 1 Engine 3 | 1 . . 2 . . . . Core 3 | . . . . 1 . 1 1 Reactor . | . . . . . . . . Propulsion 20 | 2 1 . 6 . . 2 9 Treads 12 | 2 1 . 4 . . 1 4 Leg 4 | . . . 2 . . . 2 Wheel 4 | . . . . . . 1 3 Hover . | . . . . . . . . Flight . | . . . . . . . . Utility 17 | 1 2 1 4 1 . 4 4 Device 2 | . . . 1 . . . 1 Storage 4 | 1 1 . 1 . . 1 . Processor 2 | . . . 1 . . . 1 Hackware . | . . . . . . . . Protection 9 | . 1 1 1 1 . 3 2 Artifact . | . . . . . . . . Weapon 36 | 3 . 4 8 2 2 6 11 Energy Gun 2 | 1 . 1 . . . . . Energy Cannon 2 | . . . . . . . 2 Ballistic Gun 5 | 2 . 2 1 . . . . Ballistic Cannon 9 | . . . 5 1 1 1 1 Launcher 6 | . . 1 . 1 . 3 1 Special Weapon 1 | . . . . . . . 1 Impact Weapon 11 | . . . 2 . 1 2 6 Slashing Weapon . | . . . . . . . . Piercing Weapon . | . . . . . . . . Special Melee Weapon . | . . . . . . . . Unidentified Prototypes 2 | . . . 1 . . . 1 Corrupted Parts 1 | . . . . . . 1 . System Corruption 5 | . . . . . . 5 . Parts Lost 20 | . . . 4 2 . 4 10 Power 4 | . . . 2 1 . . 1 Propulsion 8 | . . . 1 . . 2 5 Utility 7 | . . . . 1 . 2 4 Weapon 1 | . . . 1 . . . . Highest Loss Streak 7 | . . . 1 2 . 2 7 To Critical Strikes 1 | . . . 1 . . . . Average Slot Usage (%) 91 | . 88 100 95 86 77 96 91 Engine 4 | . 14 14 9 . . . . Core 3 | . . . . 2 . 9 8 Treads 19 | . 28 28 15 22 22 15 16 Leg 1 | . . . 6 . . . . Wheel 3 | . . . . . . 6 16 Device 8 | . . . 11 11 11 11 4 Storage 11 | . 14 14 11 11 11 11 9 Processor 3 | . . . 7 2 . . 7 Protection 14 | . 2 14 11 15 22 21 11 Ballistic Gun 5 | . 28 23 3 . . . . Ballistic Cannon 8 | . . . 16 21 . 1 2 Launcher 1 | . . 1 . . . 7 . Impact Weapon 4 | . . . 2 . 11 10 9 Naked Turns . | . . . . . . . . Heaviest Build 63 | 13 23 21 57 55 51 63 63 Greatest Support 40 | 40 40 40 40 40 40 40 40 Greatest Overweight (x) 4 | 3 . . 1 1 1 3 4 Average Overweight (x) . | . . . . 1 1 1 1 Largest Inventory Capacity 20 | 8 10 10 20 20 20 20 20 Average Capacity 17 | 7 9 10 15 20 20 20 20 Most Carried 20 | 7 10 10 20 20 20 20 20 Average Carried 16 | 4 9 9 13 19 19 19 19 Final Capacity 20 | 8 10 10 20 20 20 20 20 Final Carried 20 | 6 10 10 20 20 20 20 18 Class Distribution -------------------- 74% | Mutant 25% | Scavenger-Mutant Dominant Class ---------------- Mutant | -10/Materials Mutant | -10/Mines Mutant | -9/Materials Mutant | -9/Mines Mutant | -9/Exiles Scavenger-Mutant | -8/Mines Scavenger-Mutant | -8/Materials Resources | -11 -10 -10 -9 -9 -9 -8 -8 ----------- Run | Yrd Mat Min Mat Min Exi Min Mat Matter Collected 1649 | 189 . 128 413 183 . 342 394 Remotely . | . . . . . . . . Salvage Created 1808 | . . 140 407 160 . 365 736 Parts 99 | . . 18 27 19 . 13 22 Haulers Intercepted . | . . . . . . . . Recyclers Shooed 2 | . . . . 2 . . . Parts Field Recycled . | . . . . . . . . Retrieved Matter . | . . . . . . . . Parts Self-Destructed . | . . . . . . . . Prevented . | . . . . . . . . Kills | -11 -10 -10 -9 -9 -9 -8 -8 ------- Run | Yrd Mat Min Mat Min Exi Min Mat Combat Hostiles Destroyed 49 | . . 8 13 11 . 6 11 Melee 4 | . . . . . . . 4 Guns 5 | . . 5 . . . . . Cannons 24 | . . . 12 8 . . 4 AOE 11 | . . 3 . 3 . 5 . Classes Destroyed 11 | . . 2 3 2 . 3 1 Worker 4 | . . . . . . 3 1 Builder 1 | . . . . 1 . . . Tunneler 1 | . . . . . . 1 . Recycler 3 | . . . . . . 1 2 Watcher 2 | . . . 1 . . . 1 Swarmer 15 | . . 6 3 6 . . . Grunt 21 | . . 2 3 4 . 5 7 Brawler 3 | . . . . 1 . 1 1 Duelist 1 | . . . 1 . . . . Sentry 8 | . . . 6 . . . 2 Hunter 1 | . . . . . . . 1 Best Kill Streak 5 | . . 3 5 5 . 3 4 Combat Bots Only 5 | . . 3 5 4 . 3 4 Max Kills in Single Turn 2 | . . 2 1 2 . 2 1 Gunslinging . | . . . . . . . . Exploded 2 | . . 2 . 2 . 2 . Melee 1 | . . . . . . . 1 Uniques/NPCs Destroyed . | . . . . . . . . Combat | -11 -10 -10 -9 -9 -9 -8 -8 -------- Run | Yrd Mat Min Mat Min Exi Min Mat Hostile Shots Fired 269 | . 17 22 73 35 . 27 95 Missed 69 | . 8 8 14 7 . 7 25 Damage Taken 2867 | . 75 165 763 367 . 439 1058 Core 369 | . 11 32 62 57 . 80 127 Absorbed by Shields . | . . . . . . . . Redirected to Shielding 37 | . 2 6 12 13 . 4 . Core Remaining (%) 77 | 100 . 82 . . . 50 . Volleys Fired 78 | . . 15 23 23 . 7 10 Largest 2 | . . 2 2 2 . 2 2 Hottest 126 | . . 40 78 78 . 66 126 Shots Fired 143 | . . 28 46 43 . 13 13 Gun 26 | . . 26 . . . . . Cannon 98 | . . . 46 38 . 1 13 Launcher 19 | . . 2 . 5 . 12 . Special . | . . . . . . . . Kinetic 118 | . . 26 46 38 . 1 7 Thermal . | . . . . . . . . Explosive 19 | . . 2 . 5 . 12 . Electromagnetic 6 | . . . . . . . 6 Robot Hit Streak 10 | . . 3 10 7 . 4 8 Robot Miss Streak 4 | . . 2 2 2 . 3 4 Penetration Max . | . . . . . . . . Secondary Targets 1 | . . 1 . . . . . Max Gunslinging Chain 1 | . . 1 . . . . . Shots Hit Robots 116 | . . 14 32 24 . 14 32 Core Hits 67 | . . 11 16 14 . 15 11 Critical Kills 3 | . . 1 . . . . 2 Critical Parts Destroyed 12 | . . . 1 . . 3 8 Critical Strikes 17 | . . 1 2 1 . 3 10 Destroy 3 | . . 1 . . . . 2 Blast 2 | . . . 1 1 . . . Smash 12 | . . . 1 . . 3 8 Melee Attacks 56 | . . . 14 . . 9 33 Impact 56 | . . . 14 . . 9 33 Slashing . | . . . . . . . . Piercing . | . . . . . . . . Sneak Attacks 9 | . . . . . . 6 3 Combat Hostiles . | . . . . . . . . Follow-up Attacks 3 | . . . . . . . 3 Damage Inflicted 3920 | . . 313 719 718 . 958 1212 Guns 152 | . . 152 . . . . . Cannons 1338 | . . . 609 496 . . 233 Explosions 936 | . . 161 . 206 . 569 . Melee 1472 | . . . 106 . . 387 979 Ramming 22 | . . . 4 16 . 2 . Kinetic 1396 | . . 152 609 496 . . 139 Thermal . | . . . . . . . . Explosive 936 | . . 161 . 206 . 569 . Electromagnetic 94 | . . . . . . . 94 Impact 1472 | . . . 106 . . 387 979 Slashing . | . . . . . . . . Piercing . | . . . . . . . . Highest Corruption 10 | . . . . 5 5 10 . Average Corruption 5 | . . . . 4 5 6 . Corruption Purged . | . . . . . . . . Corruption Blocked . | . . . . . . . . Effects 68 | . . . . 17 14 37 . Message Errors 14 | . . . . 5 3 6 . Matter Fused 16 | . . . . 2 5 9 . Heat Flow Errors 7 | . . . . 1 2 4 . Energy Discharges 12 | . . . . 3 3 6 . Data Loss (minor) 10 | . . . . 3 1 6 . Data Loss (major) 3 | . . . . 1 . 2 . Misfires 4 | . . . . 2 . 2 . Alerts 1 | . . . . . . 1 . Weapon Failures 1 | . . . . . . 1 . Overload Shots . | . . . . . . . . Overflow Damage 567 | . . . 36 1 . 192 338 Projectiles 1 | . . . . 1 . . . Explosions . | . . . . . . . . Melee 566 | . . . 36 . . 192 338 Knockbacks 11 | . . . 5 . . 2 4 Impact 2 | . . . . . . 2 . Kinetic 8 | . . . 5 . . . 3 Secondary 1 | . . . . . . . 1 Self-Inflicted Damage 123 | . . . . . . 123 . Shots 5 | . . . . . . 5 . Rammed 5 | . . . 1 3 . 1 . Targets Rammed 5 | . . . 1 3 . 1 . Kicked . | . . . . . . . . Crushed . | . . . . . . . . Highest Temperature 254 | . . 18 60 190 254 254 194 Average Temperature 59 | . . 10 22 44 119 78 87 Received Heat Transfer 951 | . . 60 249 21 . 216 405 Effects 1 | . . . . . 1 . . Interference 1 | . . . . . 1 . . Siege Activations . | . . . . . . . . Robots Corrupted . | . . . . . . . . Combat Hostiles . | . . . . . . . . Parts Fried 11 | . . . 1 . . 3 7 Impact Corruptions 23 | . . . 1 . . 7 15 Robots Melted . | . . . . . . . . Combat Hostiles . | . . . . . . . . Parts Melted . | . . . . . . . . Heat Transferred . | . . . . . . . . Parts Sabotaged . | . . . . . . . . Parts Stolen . | . . . . . . . . Parts Stripped . | . . . . . . . . Power Chain Reactions . | . . . . . . . . Alert | -11 -10 -10 -9 -9 -9 -8 -8 ------- Run | Yrd Mat Min Mat Min Exi Min Mat Peak Influence 264 | . 21 142 264 190 . 107 216 Initial 58 | . . 7 31 58 . . 6 Average 73 | . 1 97 133 73 . 45 63 Maximum Alert Level 1 | . . . 1 . . . 1 Low Security (%) 93 | 100 100 100 74 100 . 100 97 Level 1 6 | . . . 25 . . . 2 Level 2 . | . . . . . . . . Level 3 . | . . . . . . . . Level 4 . | . . . . . . . . Level 5 . | . . . . . . . . High Security . | . . . . . . . . Max Security . | . . . . . . . . Squads Dispatched 4 | . . 1 2 . . . 1 Investigation 1 | . . . 1 . . . . Extermination . | . . . . . . . . Reinforcement 2 | . . . 1 . . . 1 Assault 1 | . . 1 . . . . . Garrison . | . . . . . . . . Intercept . | . . . . . . . . Searches Triggered . | . . . . . . . . Construction Impeded . | . . . . . . . . Haulers Reinforced . | . . . . . . . . Active Scanning Responses . | . . . . . . . . Cargo Convoy Interrupts . | . . . . . . . . Stealth | -11 -10 -10 -9 -9 -9 -8 -8 --------- Run | Yrd Mat Min Mat Min Exi Min Mat Distress Signals 5 | . . . 4 . . . 1 Communications Jammed . | . . . . . . . . Distress Signals . | . . . . . . . . Times Spotted 74 | . 6 7 26 10 . 6 19 Peak Tracking Total 8 | . 5 3 8 3 . 3 5 Tactical Retreats 7 | . . . 3 1 . . 3 Traps | -11 -10 -10 -9 -9 -9 -8 -8 ------- Run | Yrd Mat Min Mat Min Exi Min Mat Traps Triggered 2 | . 1 . 1 . . . . Indirectly . | . . . . . . . . Trap Hack Attempts . | . . . . . . . . Triggered . | . . . . . . . . Disarmed . | . . . . . . . . Reprogrammed . | . . . . . . . . Reused . | . . . . . . . . Traps Extracted . | . . . . . . . . Installed . | . . . . . . . . Triggered . | . . . . . . . . Machines | -11 -10 -10 -9 -9 -9 -8 -8 ---------- Run | Yrd Mat Min Mat Min Exi Min Mat Machines Disabled 7 | . . . 3 . . 3 1 Max in Single Turn 1 | . . . 1 . . 1 1 Machines Repaired . | . . . . . . . . Machines Dismantled . | . . . . . . . . Machines Sabotaged . | . . . . . . . . Overloaded Fab Kills . | . . . . . . . . Hacking | -11 -10 -10 -9 -9 -9 -8 -8 --------- Run | Yrd Mat Min Mat Min Exi Min Mat Machines Accessed 9 | . 1 . 6 . . . 2 Terminals 9 | . 1 . 6 . . . 2 Fabricators . | . . . . . . . . Repair Stations . | . . . . . . . . Recycling Units . | . . . . . . . . Scanalyzers . | . . . . . . . . Garrison Access . | . . . . . . . . Total Hacks 22 | . 5 . 14 . . . 3 Successful 4 | . 2 . 1 . . . 1 Failed 18 | . 3 . 13 . . . 2 Catastrophic 5 | . . . 4 . . . 1 Database Lockouts . | . . . . . . . . Manual 20 | . 5 . 12 . . . 3 Terminals 22 | . 5 . 14 . . . 3 Fabricators . | . . . . . . . . Repair Stations . | . . . . . . . . Recycling Units . | . . . . . . . . Scanalyzers . | . . . . . . . . Garrison Access . | . . . . . . . . Terminal Hacks 4 | . 2 . 1 . . . 1 Part Schematic 1 | . 1 . . . . . . Robot Analysis 1 | . 1 . . . . . . Branch Access Points 2 | . . . 1 . . . 1 Fabricator Hacks . | . . . . . . . . Repair Station Hacks . | . . . . . . . . Recycling Unit Hacks . | . . . . . . . . Scanalyzer . | . . . . . . . . Garrison Access Hacks . | . . . . . . . . Unauthorized Hacks . | . . . . . . . . Terminals . | . . . . . . . . Fabricators . | . . . . . . . . Repair Stations . | . . . . . . . . Recycling Units . | . . . . . . . . Scanalyzers . | . . . . . . . . Garrison Access . | . . . . . . . . Data Cores Recovered . | . . . . . . . . Used . | . . . . . . . . Hacking Detections 8 | . 1 . 6 . . . 1 Full Trace Events . | . . . . . . . . Feedback Events . | . . . . . . . . Feedback Blocked . | . . . . . . . . Robot Schematics Acquired . | . . . . . . . . Robots Built . | . . . . . . . . Authchips . | . . . . . . . . Time . | . . . . . . . . Total Robot Build Rating . | . . . . . . . . Part Schematics Acquired 1 | . 1 . . . . . . Parts Built . | . . . . . . . . Authchips . | . . . . . . . . Time . | . . . . . . . . Total Part Build Rating . | . . . . . . . . Parts Repaired . | . . . . . . . . Time . | . . . . . . . . Parts Recycled . | . . . . . . . . Recycled Matter . | . . . . . . . . Retrieved Matter . | . . . . . . . . Retrieved Components . | . . . . . . . . Parts Scanalyzed . | . . . . . . . . Part Schematics Acquired . | . . . . . . . . Parts Damaged . | . . . . . . . . Bothacking | -11 -10 -10 -9 -9 -9 -8 -8 ------------ Run | Yrd Mat Min Mat Min Exi Min Mat Used RIF Installer . | . . . . . . . . Robots Hacked . | . . . . . . . . Non-combat . | . . . . . . . . Combat . | . . . . . . . . Robot Hacks Applied . | . . . . . . . . Relay Couplers Released . | . . . . . . . . Fabnet Peak Effective % . | . . . . . . . . Robots Rewired . | . . . . . . . . Allies Hacked . | . . . . . . . . Hacks Repelled . | . . . . . . . . Allies | -11 -10 -10 -9 -9 -9 -8 -8 -------- Run | Yrd Mat Min Mat Min Exi Min Mat Total Allies 2 | . . 1 . 1 . . . Largest Group 1 | . . 1 1 1 . . . Highest-Rated Group 31 | . . 31 31 31 . . . Highest-Rated Ally 31 | . . 31 31 31 . . . Total Orders . | . . . . . . . . Ally Attacks 15 | . . . 15 . . . . Total Damage 167 | . . . 167 . . . . Kills 3 | . . . 3 . . . . Allies Corrupted . | . . . . . . . . Allies Melted . | . . . . . . . . Intel | -11 -10 -10 -9 -9 -9 -8 -8 ------- Run | Yrd Mat Min Mat Min Exi Min Mat Robot Analysis Total 1 | . 1 . . . . . . Derelict Logs Recovered 4 | . . 1 . 3 . . . Drone Launches . | . . . . . . . . Drone Recoveries . | . . . . . . . . Exploration | -11 -10 -10 -9 -9 -9 -8 -8 ------------- Run | Yrd Mat Min Mat Min Exi Min Mat Turns Passed 6068 | 82 568 511 1264 1199 578 1180 686 Spaces Moved 2538 | 42 158 283 620 465 239 396 335 Core 10 | 10 . . . . . . . Treads 1995 | 32 158 283 347 465 239 388 83 Legs 273 | . . . 273 . . . . Wheels 260 | . . . . . . 8 252 Hover . | . . . . . . . . Flight . | . . . . . . . . Fastest Speed 50 | 50 160 160 120 240 240 145 105 Average Speed 202 | 157 160 160 173 240 240 281 148 Slowest Speed 320 | 200 160 160 240 240 240 320 240 Overloaded Moves . | . . . . . . . . Propulsion Burnouts . | . . . . . . . . Robots Hopped . | . . . . . . . . Cave-ins Triggered . | . . . . . . . . Exploration Rate (%) 54 | 4 38 57 60 100 67 85 28 Regions Visited 7 Branch Regions 4 Pre-discovered Areas 1 | . . 1 . . . . . Known Exits Taken 2 | . . . 1 . . 1 . Unknown Exits Taken 5 | 1 1 1 . 1 1 . . Scrap Searched 2 | . . 1 . 1 . . . Spaces Dug 18 | . . 12 3 . . . 3 Terrain Destroyed 138 | . . 12 5 49 . 67 5 Melee 6 | . . . 3 . . . 3 Projectile 6 | . . . 2 2 . . 2 AOE 126 | . . 12 . 47 . 67 . Terrain Rammed . | . . . . . . . . Walls Destroyed . | . . . . . . . . Machines Disabled . | . . . . . . . . Actions | -11 -10 -10 -9 -9 -9 -8 -8 --------- Run | Yrd Mat Min Mat Min Exi Min Mat Total 3214 | 55 474 316 741 503 245 430 450 Wait 369 | . 302 9 22 6 . . 30 Move 2531 | 41 157 282 619 464 238 395 335 Hop . | . . . . . . . . Pick Up 56 | 7 8 2 25 2 1 3 8 Fast Attach 29 | 5 2 . 6 1 1 4 10 Attach 21 | 1 1 1 6 1 . 4 7 Detach 1 | . . . . . 1 . . Swap 29 | 1 . 4 8 2 1 5 8 Drop 43 | . 4 3 17 1 3 2 13 Fire 78 | . . 15 23 23 . 7 10 Melee 52 | . . . 14 . . 9 29 Ram . | . . . . . . . . Kick . | . . . . . . . . Crush 5 | . . . 1 3 . 1 . Escape Stasis . | . . . . . . . . Rewire . | . . . . . . . . Trap . | . . . . . . . . Miscellaneous . | . . . . . . . . Route ------- -11/Scrapyard -10/Materials -10/Mines (discovered 2 exits: *Mat x2) -9/Materials (discovered 4 exits: *Mat x2 / *Min x2) -9/Mines (discovered 3 exits: *Mat x2 / [*Exi]) -9/Exiles (discovered 2 exits: [*Min x2]) -8/Mines -8/Materials History --------- Turn | Location | Event 46 | -11/Scrapyard | Discovered new exit (range 15) 83 | -11/Scrapyard | Entered Materials 301 | -10/Materials | Build established: Mutant 609 | -10/Materials | Discovered new exit (range 9) 651 | -10/Materials | Entered Mines 777 | -10/Mines | Discovered new exit (range 7) 958 | -10/Mines | Learned location of Storage (-7) 1111 | -10/Mines | Discovered new exit (range 12) 1117 | -10/Mines | Met a Derelict testing a Signal Generator 1162 | -10/Mines | Entered Materials 1162 | -9/Materials | Accompanied by 1 ally 1162 | -9/Materials | Evolved 2 slots: Utility x2 1521 | -9/Materials | Discovered new exit (range 5) 1531 | -9/Materials | Identified exit to Materials 2063 | -9/Materials | Discovered exit to Materials (range 5) 2188 | -9/Materials | Identified exit to Mines 2426 | -9/Materials | Entered Mines 2669 | -9/Mines | Learned Materials emergency access door positions 2696 | -9/Mines | Discovered new exit (range 4) 3007 | -9/Mines | Discovered exit to Materials (range 8) 3081 | -9/Mines | A weapon hastily lodged in a ceiling crevice suddenly fell to the ground 3150 | -9/Mines | Discovered exit to Materials (range 15) 3168 | -9/Mines | Received a Mining Laser from a helpful Derelict 3273 | -9/Mines | Received a Rocket Launcher from a helpful Derelict 3469 | -9/Mines | Learned Materials terminal intel 3601 | -9/Mines | Deemed a non-threat by the Exiles lab entrance 3625 | -9/Mines | Entered Exiles 3666 | -9/Exiles | Discovered new exit (range 15) 3718 | -9/Exiles | Met 8R-AWN 3759 | -9/Exiles | Met EX-HEX 3876 | -9/Exiles | Met EX-DEC 3918 | -9/Exiles | Visited The Gauntlet 4174 | -9/Exiles | Discovered new exit (range 14) 4203 | -9/Exiles | Entered Mines 4862 | -8/Mines | Discovered exit to Materials (range 7) 4963 | -8/Mines | Build established: Scavenger-Mutant 4978 | -8/Mines | System corruption reached 10% 5383 | -8/Mines | Entered Materials 5383 | -8/Materials | Evolved 2 slots: Propulsion x2 5385 | -8/Materials | Loaded intel: 11 terminal locations 6044 | -8/Materials | Lost 7 parts (1p4n2u) 6069 | -8/Materials | Self-destructed Last Messages --------------- 06022_ Acquired 10 matter. 06024_ Slug penetrates Wall. 06034_ Acquired Adv. Heat Sink. 06035_ Acquired 10 matter. 06036_ Penetrated by Slug. 06040_ H-55 Commando suffers critical hit (Smash). 06040_ Destroyed Lgt. Nuclear Core. 06040_ Destroyed Targeting Computer. 06040_ H-55 Commando system corrupted by crushing effect. 06041_ H-55 Commando system terminally corrupted. 06041_ Assault Rifle fried. 06044_ Acquired Carbon-fiber Leg. 06046_ Acquired 10 matter. 06053_ K-01 Serf cleans the Matter Pump. 06069_ Connecting with Terminal... >>Access(Branch) No branch access points found. Map ----- +----------------------------------------------------+ | ?????????????????????????????????????????????????? | | ?????????????????????????????????????????????????? | | ?????????????????????????????????????????????????? | | ???????????????????????"?????????????????????????? | | ???????????????????????T?????????????????????????? | | ???????????????????????"?????????????????????????? | | ???????? ???????????????????????????????????????? | | ?????? # ^ ??????????????###?????????????????????? | | ?????### ""????????????? ?????????????????????? | | ?????# ?????????????? ?????????????????????? | | ?????? ?????????????? ?????????????????????? | | ?????? ?????????????? ?????????????????????? | | ???### ?????????????? T?????????????????????? | | ###### #????????????# ? ?????????????????? | | #### ## ##????????????# ??????????????????? | | # ##????????????# """ ??????????????????? | | # ##????????????# a"""???????????????????? | | "S ? + ##????????????# """???????????????????? | | """ ? # ##????????????# ????????????????????? | | ""?? # ######????????#k ???????????????T????? | | ? # # #????????#% #????????????????????? | | #+##?## # #????????# g#????????????????????? | | # ##?## # #????????# #????????????????????? | | # ##### # #???????## #????????????????????? | | # ##### + #???????#T #????????????????????? | | ### # #????????#@ #????????????????????? | | ### # #????????# #????????????????????? | | # ########?# u #????????????????????? | | #### ## + % #?# #????????????????????? | | #### ############%#?# #????????????????????? | | ##### ###???##???# #?# #????????????????????? | | #####+####### ##?# #?# #???????????T????????? | | + # ! ?# ### #????????????????????? | | # ! # """" # ### ###+#####????????????? | | # " # ""S"" # #??????????? | | # / """# "" "" + #??????????? | | # """# #% """ """ #??????????? | | # """# #### """ """ +??????????? | | = # "" # ????# """ """ #??????????? | | # """# ????# ?????????????? | | /! # / ""########????## ?????????????? | | # """##?????????? # """ """ ????????????? | | # " ##?????????? # """ """ ???????????? | | # ##?????????? + """ """ ??????????? | | #############"????? # ?? ???????????? | | #############"????? # ? ???????????????? | | #### * # ????? # ??? ???????????????? | | ####[""" ######### ##????#???????????????? | | /=""" !! ######### ##????????????????????? | | ####!""" !! ## # ##????????????????????? | +----------------------------------------------------+ Best States ------------- Heat Dissipation 50 Energy Generation 14 Energy Capacity 265 Matter Stores 300 Matter Capacity 300 Sight Range 20 Terrain Scan Density 10 Armor Coverage 300 Core Shielding 20 Evasion (%) 55 Recoil Reduction 2 Item Schematics ----------------- Huge Storage Unit | -10/Materials | Hacked Robot Schematics ------------------ None Fabricated ------------ Nothing Alien Tech Used ----------------- None Achievements -------------- None Challenges ------------ None Game ------ Seed SalvageMassOptics Manual? 0 Play Time 00:29:12 Cumulative 255.6 hours Start 2024.04.30 @ 02:28:02 End 2024.04.30 @ 02:55:24 Sessions 1 Manual Loads 0 Difficulty Rogue Special Mode None Game No. 64 Rogue 64 Adventurer 0 Explorer 0 Win Type - Total 15 Types 8/2/3/1/1/0/0/0/0 Lore% 56 Gallery% 77 Achievement% 67 Wizard Run 0 Options --------- Layout 1 ASCII 0 Keyboard 0 Movement Numpad Keybinds 0 Fullscreen 1 Font 24/Smallcaps Map View 50x35 Zoom Use 0% Tactical HUD 1 Map Filters NONE Filters NONE Steam 1 RUN: 7d1820d9-3ffd-4c2c-a88c-2943d28333b0